fUSD/lending_fUSD_20251224
["ID","MTS","AMOUNT","RATE_DAILY","PERIOD"]
[399665816,1766592639264,-195.0,0.00016087,2]
[399665817,1766592639274,-250.0,0.00016087,2]
[399665818,1766592639285,-500.0,0.00016137,2]
[399665819,1766592639295,-150.0,0.00016137,2]
[399665820,1766592639304,-150.0,0.00016137,2]
[399665821,1766592639314,-150.0,0.00016137,2]
[399665822,1766592639324,-150.0,0.00016137,2]
[399665823,1766592639334,-420.0,0.00016142,2]
[399665824,1766592639344,-222.99012092,0.00016157,2]
[399665825,1766592639355,-1680.0,0.00016177,2]
[399665826,1766592639365,-200.0,0.0001622,2]
[399665827,1766592639374,-150.0,0.00016258,2]
[399665828,1766592639384,-457.99607736,0.0001626,2]
[399665829,1766592639394,-1500.0,0.00016268,2]
[399665830,1766592639404,-1500.0,0.00016268,2]
[399665831,1766592639414,-507.00799583,0.00016268,2]
[399665832,1766592639424,-1500.0,0.00016268,2]
[399665833,1766592639434,-1500.0,0.00016268,2]
[399665834,1766592639443,-500.0,0.00016273,2]
[399665835,1766592639452,-961.05,0.00016273,2]
[399665836,1766592639462,-150.0,0.0001641,2]
[399665837,1766592639473,-150.0,0.0001641,2]
[399665838,1766592639482,-500.0,0.00016435,2]
[399665839,1766592639492,-500.0,0.00016438,2]
[399665840,1766592639501,-500.0,0.00016438,2]
[399665841,1766592639511,-500.0,0.00016438,2]
[399665842,1766592639521,-500.0,0.00016438,2]
[399665843,1766592639530,-500.0,0.00016438,2]
[399665844,1766592639540,-500.0,0.00016438,2]
[399665845,1766592639550,-500.0,0.00016438,2]
[399665846,1766592639559,-500.0,0.00016438,2]
[399665847,1766592639569,-500.0,0.00016438,2]
[399665848,1766592639579,-500.0,0.00016438,2]
[399665849,1766592639588,-500.0,0.00016438,2]
[399665850,1766592639598,-500.0,0.00016438,2]
[399665851,1766592639608,-500.0,0.00016438,2]
[399665852,1766592639618,-500.0,0.00016438,2]
[399665853,1766592639628,-500.0,0.00016438,2]
[399665854,1766592639639,-500.0,0.00016438,2]
[399665855,1766592639649,-500.0,0.00016438,2]
[399665856,1766592639659,-500.0,0.00016438,2]
[399665857,1766592639668,-500.0,0.00016438,2]
[399665858,1766592639678,-500.0,0.00016438,2]
[399665859,1766592639688,-500.0,0.00016438,2]
[399665860,1766592639698,-500.0,0.00016438,2]
[399665861,1766592639708,-500.0,0.00016438,2]
[399665862,1766592639717,-500.0,0.00016438,2]
[399665863,1766592639727,-500.0,0.00016438,2]
[399665864,1766592639738,-500.0,0.00016438,2]
[399665865,1766592639747,-500.0,0.00016438,2]
[399665866,1766592639758,-500.0,0.00016438,2]
[399665867,1766592639769,-441.16531365,0.00016438,2]
[399665868,1766592639779,-150.0,0.00016501,2]
[399665869,1766592639789,-500.0,0.00016547,2]
[399665870,1766592639799,-961.05,0.00016547,2]
[399665871,1766592639808,-829.99520841,0.00016734,7]
[399665872,1766592639818,-150.0,0.00016744,2]
[399665873,1766592639828,-4621.2,0.00016778,2]
[399665874,1766592639838,-2000.0,0.00016816,2]
[399665875,1766592639848,-353.92874992,0.00016816,2]
[399665876,1766592639863,-1500.0,0.00016816,2]
[399665877,1766592639872,-201.4900217,0.00016821,2]
[399665878,1766592639882,-961.05,0.00016821,2]
[399665879,1766592639892,-6412.76485933,0.00016894,2]
[399665880,1766592639903,-355.52510888,0.00016894,2]
[399665881,1766592639913,-6412.76485933,0.00016895,2]
[399665882,1766592639923,-6412.76485933,0.00016895,2]
[399665883,1766592639935,-6412.76485933,0.00016896,2]
[399665884,1766592639946,-6412.76485933,0.00016897,2]
[399665885,1766592639956,-6412.76485933,0.00016897,2]
[399665886,1766592639966,-6412.76485933,0.00016898,2]
[399665887,1766592639976,-6412.76485933,0.00016899,2]
[399665888,1766592639986,-6412.76485933,0.00016899,2]
[399665889,1766592639996,-152.09137787,0.000169,2]
[399665890,1766592640006,-1000.0,0.000169,2]
[399665891,1766592640018,-10000.0,0.000169,2]
[399665892,1766592640028,-398.40831123,0.000169,2]
[399665893,1766592640038,-160.19320816,0.000169,2]
[399665894,1766592640048,-387.85214729,0.000169,2]
[399665895,1766592640058,-6412.76485933,0.000169,2]
[399665896,1766592640068,-185.72541202,0.000169,2]
[399665897,1766592640077,-287.0,0.0001695,2]
[399665898,1766592640087,-151.0,0.00016983,2]
[399665899,1766592640098,-9315.68,0.00016986,2]
[399665900,1766592640115,-150.0,0.00016986,2]
[399665901,1766592640126,-234.96503369,0.00016986,2]
[399665902,1766592640137,-150.0,0.00016986,2]
[399665903,1766592640147,-150.0,0.00016986,2]
[399665904,1766592640158,-150.00000001,0.00016986,2]
[399665905,1766592640169,-150.0,0.00016986,2]
[399665906,1766592640180,-150.00000001,0.00016986,2]
[399665907,1766592640191,-177.95989573,0.0001699,2]
[399665908,1766592640201,-177.95989573,0.0001699,2]
[399665909,1766592640212,-500.0,0.00016993,2]
[399665910,1766592640223,-24203.8156583,0.00016994,2]
[399665911,1766592640233,-225505.8140613,0.00016994,2]
[399665912,1766592640244,-37984.6374007,0.00016994,2]
[399665913,1766592640254,-9577.7637375,0.00016994,2]
[399665914,1766592640266,-1999.7907046,0.00016994,2]
[399665915,1766592640276,-3055.2719339,0.00016994,2]
[399665916,1766592640287,-151.0,0.00016997,2]
[399665917,1766592640297,-300.0,0.00016999,2]
[399665918,1766592640307,-300.0,0.00016999,2]
[399665919,1766592640318,-300.0,0.00016999,2]
[399665920,1766592640328,-500.0,0.00016999,2]
[399665921,1766592640339,-500.0,0.00016999,2]
[399665922,1766592640349,-500.0,0.00016999,2]
[399665923,1766592640360,-500.0,0.00016999,2]
[399665924,1766592640370,-282.03365894,0.00016999,2]
[399665925,1766592640381,-300.0,0.00016999,2]
[399665926,1766592640391,-666.0,0.00016999,2]
[399665927,1766592640403,-1607668.42640476,0.00017,2]
[399665931,1766592640846,-5004.89600574,0.00017,2]
[399665932,1766592640863,-1449.6465707,0.00017,2]
[399665933,1766592640880,-478.37891291,0.00017,2]
[399665934,1766592640892,-351.88118535,0.00017,2]
[399665935,1766592641214,-372.34049029,0.00015664,2]
[399665936,1766592641226,-228.088718,0.00015664,2]
[399665937,1766592641236,-165.57368199,0.00017,2]
[399665938,1766592641248,-470546.6347079,0.00017,2]
[399665939,1766592641283,-665.47844253,0.00017,2]
[399665940,1766592643267,-61.62029873,0.00017,2]
[399665941,1766592643284,-609.55022965,0.00017,2]
[399665942,1766592643368,-1072282.74767346,0.00017,2]
[399665943,1766592643534,-4122.76392,0.00017,2]
[399665945,1766592646117,-600.42920829,0.00015973,2]
[399665946,1766592646129,-194.89876376,0.000169,2]
[399665947,1766592646140,-440.60689221,0.00017,2]
[399665948,1766592646164,-8845.07552215,0.00017,2]
[399665949,1766592646414,-506.90891425,0.00017,2]
[399665950,1766592646427,-413331.66997496,0.00017,2]
[399665951,1766592646440,-384.79023,0.00017,2]
[399665957,1766593052220,7495.18,0.00014153,2]
[399665958,1766593087556,880.01,7.083e-05,2]
[399665959,1766593087776,880.01,7.456e-05,2]
[399665960,1766593088203,744.81,7.829e-05,2]
[399665961,1766593088230,135.2,7.829e-05,2]
[399665962,1766593088295,880.01,8.201e-05,2]
[399665963,1766593088428,880.01,8.574e-05,2]
[399665964,1766593088628,880.01,8.947e-05,2]
[399665965,1766593088827,880.01,9.32e-05,2]
[399665966,1766593089058,880.01,9.693e-05,2]
[399665967,1766593089261,880.01,0.00010065,2]
[399665968,1766593089456,880.01,0.00010438,2]
[399665969,1766593089663,880.01,0.00010811,2]
[399665970,1766593089862,880.01,0.00011184,2]
[399665971,1766593090062,880.01,0.00011557,2]
[399665972,1766593090298,880.01,0.00011929,2]
[399665973,1766593090487,184.7,0.00012302,2]
[399665974,1766593090514,695.31,0.00012302,2]
[399665975,1766593090698,880.01,0.00012675,2]
[399665976,1766593090944,880.01,0.00013048,2]
[399665977,1766593091158,880.01,0.0001342,2]
[399665978,1766593091368,880.01,0.00013793,2]
[399665979,1766593091588,880.01,0.00014166,2]
[399665980,1766593128539,1524.53,0.00021918,30]
[399665981,1766593276567,165.71,0.00011183,2]
[399665982,1766593276968,165.71,0.00012581,2]
[399665983,1766593277167,165.71,0.00013979,2]
[399665984,1766593296674,1199.8,0.00013928,2]
[399665985,1766593310331,3207.72,0.00013928,2]
[399665986,1766593310356,10000.01,0.00013928,2]
[399665987,1766593310381,555.87,0.00013928,2]
[399665989,1766593415535,1852.42,0.00013938,2]
[399665990,1766593439782,151.0,0.00014166,2]
[399665991,1766593439868,151.0,0.00014166,2]
[399665992,1766593580353,7289.72,0.00013934,2]
[399665993,1766593580380,3242.53,0.00013934,2]
[399665994,1766593690567,306.53543765,0.000125,2]
[399665997,1766593718951,4213.62261708,0.0001,2]
[399665998,1766593736270,2237.32194527,0.00013773,2]
[399665999,1766593736294,3005.08805473,0.00013773,2]
[399666000,1766593741022,151.0,0.00014166,2]
[399666001,1766593741106,151.0,0.00014166,2]
[399666002,1766593742068,183.82786472,0.00014166,2]
[399666003,1766593754150,-225.16095317,0.00014453,2]
[399666004,1766593754172,-195.0,0.00014462,2]
[399666005,1766593754194,-195.0,0.00014467,2]
[399666006,1766593754216,-300.0,0.0001447,2]
[399666007,1766593754237,-1200.0,0.0001447,2]
[399666008,1766593754259,-250.0,0.0001447,2]
[399666009,1766593754280,-195.0,0.0001447,2]
[399666010,1766593754303,-600.0,0.00014471,2]
[399666011,1766593754324,-225.41119016,0.00014471,2]
[399666012,1766593754345,-204.06937007,0.00014471,2]
[399666013,1766593754367,-250.0,0.00014471,2]
[399666014,1766593754390,-500.0,0.00014471,2]
[399666015,1766593754412,-150.0,0.00014471,2]
[399666016,1766593754433,-150.0,0.00014471,2]
[399666017,1766593754455,-150.0,0.00014471,2]
[399666018,1766593754476,-150.0,0.00014471,2]
[399666019,1766593754498,-150.0,0.00014471,2]
[399666020,1766593754519,-150.0,0.00014471,2]
[399666021,1766593754540,-150.0,0.00014471,2]
[399666022,1766593754561,-30.8124766,0.00014473,2]
[399666031,1766593832425,-166.67,0.00014392,2]
[399666032,1766593832436,-195.0,0.00014422,2]
[399666033,1766593832446,-250.0,0.00014422,2]
[399666034,1766593832456,-168.69894869,0.00014453,2]
[399666035,1766593832466,-195.0,0.00014468,2]
[399666036,1766593832476,-150.0,0.00014471,2]
[399666038,1766593832486,-150.0,0.00014471,2]
[399666040,1766593832497,-150.0,0.00014471,2]
[399666042,1766593832508,-150.0,0.00014471,2]
[399666044,1766593832519,-150.0,0.00014498,2]
[399666046,1766593832530,-150.0,0.00014498,2]
[399666048,1766593832542,-150.0,0.00014498,2]
[399666050,1766593832553,-150.0,0.00014498,2]
[399666052,1766593832564,-150.0,0.00014498,2]
[399666054,1766593832576,-300.0,0.00014525,2]
[399666056,1766593832590,-1200.0,0.00014525,2]
[399666058,1766593832600,-300.0,0.00014525,2]
[399666060,1766593832610,-200.0,0.00014526,2]
[399666062,1766593832620,-150.0,0.00014526,2]
[399666064,1766593832629,-200.0,0.00014526,2]
[399666066,1766593832639,-200.0,0.00014526,2]
[399666068,1766593832649,-150.0,0.00014526,2]
[399666070,1766593832659,-151.0,0.00014543,2]
[399666072,1766593832668,-150.0,0.00014544,2]
[399666074,1766593832678,-500.0,0.00014545,2]
[399666075,1766593832688,-500.0,0.00014545,2]
[399666076,1766593832698,-257.32789535,0.00014545,2]
[399666078,1766593832708,-553.82359003,0.00014545,2]
[399666080,1766593832718,-500.0,0.00014545,2]
[399666082,1766593832728,-647.91273552,0.00014545,2]
[399666084,1766593832737,-500.0,0.00014545,2]
[399666086,1766593832747,-621.04509815,0.00014545,2]
[399666087,1766593832761,-236.37477528,0.00014545,2]
[399666088,1766593832772,-500.0,0.00014545,2]
[399666089,1766593832782,-500.0,0.00014545,2]
[399666090,1766593832794,-500.0,0.00014545,2]
[399666091,1766593832806,-500.0,0.00014545,2]
[399666092,1766593832816,-500.0,0.00014545,2]
[399666093,1766593832827,-500.0,0.00014545,2]
[399666094,1766593832837,-500.0,0.00014545,2]
[399666095,1766593832846,-500.0,0.00014545,2]
[399666096,1766593832856,-176.97036574,0.00014545,2]
[399666097,1766593832866,-500.0,0.00014545,2]
[399666098,1766593832875,-500.0,0.00014545,2]
[399666099,1766593832885,-500.0,0.00014545,2]
[399666100,1766593832895,-500.0,0.00014545,2]
[399666101,1766593832906,-500.0,0.00014545,2]
[399666102,1766593832916,-500.0,0.00014545,2]
[399666103,1766593832926,-500.0,0.00014545,2]
[399666104,1766593832936,-500.0,0.00014545,2]
[399666105,1766593832946,-500.0,0.00014545,2]
[399666106,1766593832955,-500.0,0.00014545,2]
[399666107,1766593832966,-500.0,0.00014545,2]
[399666108,1766593832976,-500.0,0.00014545,2]
[399666109,1766593832986,-500.0,0.00014545,2]
[399666110,1766593832996,-500.0,0.00014545,2]
[399666111,1766593833006,-500.0,0.00014545,2]
[399666112,1766593833016,-500.0,0.00014545,2]
[399666113,1766593833026,-500.0,0.00014545,2]
[399666114,1766593833035,-500.0,0.00014545,2]
[399666115,1766593833045,-500.0,0.00014545,2]
[399666116,1766593833056,-500.0,0.00014545,2]
[399666117,1766593833067,-500.0,0.00014545,2]
[399666118,1766593833076,-500.0,0.00014545,2]
[399666119,1766593833086,-500.0,0.00014545,2]
[399666120,1766593833096,-500.0,0.00014545,2]
[399666121,1766593833106,-250.0,0.00014545,2]
[399666122,1766593833116,-500.0,0.00014545,2]
[399666123,1766593833126,-500.0,0.00014545,2]
[399666124,1766593833136,-500.0,0.00014545,2]
[399666125,1766593833146,-633.0600064,0.00014545,2]
[399666126,1766593833156,-183.6958379,0.00014545,2]
[399666127,1766593833166,-500.0,0.00014545,2]
[399666128,1766593833177,-500.0,0.00014545,2]
[399666129,1766593833187,-500.0,0.00014545,2]
[399666130,1766593833198,-500.0,0.00014545,2]
[399666131,1766593833208,-500.0,0.00014545,2]
[399666132,1766593833218,-500.0,0.00014545,2]
[399666133,1766593833228,-500.0,0.00014545,2]
[399666134,1766593833238,-500.0,0.00014545,2]
[399666135,1766593833248,-500.0,0.00014545,2]
[399666136,1766593833257,-500.0,0.00014545,2]
[399666137,1766593833268,-500.0,0.00014545,2]
[399666138,1766593833278,-500.0,0.00014545,2]
[399666139,1766593833289,-500.0,0.00014545,2]
[399666140,1766593833299,-500.0,0.00014545,2]
[399666141,1766593833309,-500.0,0.00014545,2]
[399666142,1766593833319,-500.0,0.00014545,2]
[399666143,1766593833329,-500.0,0.00014545,2]
[399666144,1766593833339,-500.0,0.00014545,2]
[399666145,1766593833349,-500.0,0.00014545,2]
[399666146,1766593833361,-500.0,0.00014545,2]
[399666147,1766593833371,-500.0,0.00014545,2]
[399666148,1766593833381,-500.0,0.00014545,2]
[399666149,1766593833391,-500.0,0.00014545,2]
[399666150,1766593833401,-500.0,0.00014545,2]
[399666151,1766593833411,-500.0,0.00014545,2]
[399666152,1766593833421,-500.0,0.00014545,2]
[399666153,1766593833432,-500.0,0.00014545,2]
[399666154,1766593833442,-450.9928827,0.00014545,2]
[399666155,1766593833454,-500.0,0.00014545,2]
[399666156,1766593833464,-500.0,0.00014545,2]
[399666157,1766593833474,-500.0,0.00014545,2]
[399666158,1766593833483,-500.0,0.00014545,2]
[399666159,1766593833494,-500.0,0.00014545,2]
[399666160,1766593833504,-500.0,0.00014545,2]
[399666161,1766593833514,-500.0,0.00014545,2]
[399666162,1766593833524,-500.0,0.00014545,2]
[399666163,1766593833535,-500.0,0.00014545,2]
[399666164,1766593833545,-500.0,0.00014545,2]
[399666165,1766593833556,-500.0,0.00014545,2]
[399666166,1766593833566,-298.09330512,0.00014545,2]
[399666167,1766593833577,-500.0,0.00014545,2]
[399666168,1766593833587,-500.0,0.00014545,2]
[399666169,1766593833598,-500.0,0.00014545,2]
[399666170,1766593833608,-500.0,0.00014545,2]
[399666171,1766593833618,-500.0,0.00014545,2]
[399666172,1766593833628,-500.0,0.00014545,2]
[399666173,1766593833638,-500.0,0.00014545,2]
[399666174,1766593833648,-500.0,0.00014545,2]
[399666175,1766593833658,-500.0,0.00014545,2]
[399666176,1766593833668,-349.99999998,0.00014545,2]
[399666177,1766593833678,-500.0,0.00014545,2]
[399666178,1766593833688,-500.0,0.00014545,2]
[399666179,1766593833698,-500.0,0.00014545,2]
[399666180,1766593833708,-500.0,0.00014545,2]
[399666181,1766593833718,-500.0,0.00014545,2]
[399666182,1766593833727,-500.0,0.00014545,2]
[399666183,1766593833737,-500.0,0.00014545,2]
[399666184,1766593833751,-500.0,0.00014545,2]
[399666185,1766593833761,-500.0,0.00014545,2]
[399666186,1766593834048,-500.0,0.00014545,2]
[399666187,1766593834059,-500.0,0.00014545,2]
[399666188,1766593834070,-500.0,0.00014545,2]
[399666189,1766593834080,-962681.82623215,0.00014546,2]
[399666190,1766593834095,-33916.08007504,0.00014546,2]
[399666191,1766593834108,-3402.09369281,0.00014546,2]
[399666192,1766593834118,-200.0,0.00014553,2]
[399666193,1766593834128,-174.0,0.00014553,2]
[399666194,1766593834139,-13947.80079676,0.00014646,2]
[399666195,1766593834151,-7767.27570324,0.00014646,2]
[399666196,1766593834161,-9999.99,0.00014646,2]
[399666197,1766593834171,-13571.74272311,0.00014726,2]
[399666198,1766593834181,-500.0,0.00014737,2]
[399666199,1766593834191,-170.66882116,0.00014737,2]
[399666200,1766593834202,-200.0,0.00014737,2]
[399666201,1766593834212,-200.0,0.00014737,2]
[399666202,1766593834222,-500.0,0.00014737,2]
[399666203,1766593834232,-1470.54,0.00014745,2]
[399666204,1766593834242,-500.0,0.00014745,2]
[399666205,1766593834252,-500.0,0.00014745,2]
[399666206,1766593834262,-500.0,0.00014745,2]
[399666207,1766593834272,-500.0,0.00014745,2]
[399666208,1766593834282,-500.0,0.00014745,2]
[399666209,1766593834293,-500.0,0.00014745,2]
[399666210,1766593834302,-500.0,0.00014745,2]
[399666211,1766593834313,-512.7999143,0.00014745,2]
[399666212,1766593834323,-150.0,0.00014746,2]
[399666213,1766593834333,-225.1609531,0.00014803,2]
[399666214,1766593834343,-500.0,0.00014819,2]
[399666215,1766593834353,-6057.56980357,0.00014826,2]
[399666216,1766593834362,-218.0,0.00014861,2]
[399666217,1766593834372,-986.0,0.00014888,2]
[399666218,1766593834383,-410.0,0.0001489,2]
[399666219,1766593834392,-625.0,0.00014917,2]
[399666220,1766593834404,-356.0,0.00014922,2]
[399666221,1766593834414,-158.59897899,0.00014926,2]
[399666222,1766593834425,-1343.0,0.00014947,2]
[399666223,1766593834435,-359.0,0.00014952,2]
[399666224,1766593834446,-13571.74272303,0.00014968,2]
[399666225,1766593834456,-368.0,0.00014981,2]
[399666226,1766593834466,-177.95989573,0.0001499,2]
[399666227,1766593834476,-5014.92,0.00014999,2]
[399666228,1766593834487,-2041.47960317,0.00015,2]
[399666229,1766593834497,-7947.26999932,0.00015,2]
[399666230,1766593834507,-21363.10346556,0.00015,2]
[399666231,1766593834517,-1155.1798605,0.00015,2]
[399666232,1766593834528,-33504.16909193,0.00015,2]
[399666233,1766593834540,-91.54636755,0.00015,2]
[399666234,1766593834552,-1162.87171922,0.00015019,2]
[399666235,1766593834563,-307.66828078,0.00015019,2]
[399666236,1766593834573,-6057.56980356,0.00015056,2]
[399666237,1766593834583,-501.02283993,0.00015067,2]
[399666238,1766593834593,-500.0,0.00015093,2]
[399666239,1766593834603,-225.1609531,0.00015152,2]
[399666240,1766593834613,-500.0,0.00015173,2]
[399666241,1766593834623,-500.0,0.00015173,2]
[399666242,1766593834633,-235.78527885,0.00015173,2]
[399666243,1766593834643,-500.0,0.00015173,2]
[399666244,1766593834654,-500.0,0.00015173,2]
[399666245,1766593834664,-168.69894868,0.00015177,2]
[399666246,1766593834674,-10492.51693668,0.00015209,2]
[399666247,1766593834714,-403.56,0.00015209,2]
[399666249,1766593838421,-500.0,0.00014545,2]
[399666250,1766593838433,-500.0,0.00014545,2]
[399666251,1766593838444,-500.0,0.00014545,2]
[399666252,1766593838454,-2675.66578635,0.00015209,2]
[399666253,1766593838464,-183.18,0.00015228,2]
[399666254,1766593838474,-3240.0,0.00015245,2]
[399666255,1766593838484,-220.75,0.00015279,2]
[399666256,1766593838495,-200.0,0.00015285,2]
[399666257,1766593838505,-200.0,0.00015285,2]
[399666258,1766593838516,-6057.56980356,0.00015287,2]
[399666259,1766593838527,-150.0,0.00015288,2]
[399666260,1766593838537,-150.0,0.00015288,2]
[399666261,1766593838548,-234.96503369,0.00015288,2]
[399666262,1766593838559,-150.0,0.00015288,2]
[399666263,1766593838571,-150.0,0.00015288,2]
[399666264,1766593838581,-150.0,0.00015288,2]
[399666265,1766593838591,-150.00000001,0.00015288,2]
[399666266,1766593838601,-150.0,0.00015288,2]
[399666267,1766593838612,-1470.54,0.00015293,2]
[399666268,1766593838621,-152.88,0.00015296,2]
[399666269,1766593838632,-1517.64,0.000153,2]
[399666270,1766593838642,-738.03069627,0.00015303,2]
[399666271,1766593838652,-201.4900217,0.00015367,2]
[399666272,1766593838663,-165.71,0.00015377,2]
[399666273,1766593838672,-506.05021686,0.000154,2]
[399666274,1766593838683,-641.92521992,0.00015403,2]
[399666275,1766593838693,-13571.74272303,0.00015451,2]
[399666276,1766593838703,-285.4,0.00015459,2]
[399666277,1766593838714,-2421.76,0.0001546,2]
[399666278,1766593838728,-225.1609531,0.00015502,2]
[399666279,1766593838740,-530.0,0.00015507,2]
[399666280,1766593838752,-6057.56980356,0.00015517,2]
[399666282,1766593838763,-500.0,0.00015534,2]
[399666283,1766593838772,-16707.49002494,0.00015556,2]
[399666284,1766593838782,-1470.54,0.00015567,2]
[399666285,1766593838794,-166.67,0.0001558,2]
[399666287,1766593838803,-255.0,0.00015664,2]
[399666288,1766593838813,-13571.74272303,0.00015692,2]
[399666289,1766593838825,-150.0,0.00015712,2]
[399666290,1766593838835,-1000.0,0.00015721,2]
[399666292,1766593838845,-1000.0,0.00015721,2]
[399666293,1766593838855,-501.47727649,0.00015721,2]
[399666294,1766593838865,-537.88170422,0.00015721,2]
[399666295,1766593838875,-6057.56980356,0.00015748,2]
[399666296,1766593838885,-2229.87975614,0.00015807,2]
[399666298,1766593838894,-300.0,0.00015831,2]
[399666300,1766593838904,-195.0,0.00015831,2]
[399666302,1766593838914,-250.0,0.00015831,2]
[399666304,1766593838924,-1470.54,0.00015841,2]
[399666306,1766593838934,-225.1609531,0.00015851,2]
[399666308,1766593838944,-300.0,0.00015898,2]
[399666309,1766593838954,-195.0,0.00015898,2]
[399666311,1766593838964,-1000.0,0.000159,2]
[399666313,1766593838974,-168.69894868,0.000159,2]
[399666315,1766593838984,-420.0,0.00015904,2]
[399666317,1766593838994,-390.0,0.00015904,2]
[399666319,1766593839004,-193.0,0.00015917,2]
[399666321,1766593839014,-600.0,0.00015917,2]
[399666323,1766593839024,-300.0,0.00015917,2]
[399666326,1766593839035,-300.0,0.00015917,2]
[399666328,1766593839045,-195.0,0.00015917,2]
[399666330,1766593839056,-250.0,0.00015917,2]
[399666331,1766593839065,-13571.74272303,0.00015934,2]
[399666334,1766593839075,-1680.0,0.00015977,2]
[399666335,1766593839085,-6057.56980356,0.00015978,2]
[399666337,1766593839096,-151.0,0.00015997,2]
[399666339,1766593839106,-500.0,0.00016,2]
[399666341,1766593839116,-23728.3415903,0.00016,2]
[399666343,1766593839125,-251478.78837656,0.00016,2]
[399666345,1766593839136,-50729.22834233,0.00016,2]
[399666347,1766593839147,-41397.36173509,0.00016,4]
[399666349,1766593839157,-1470.54,0.00016115,2]
[399666351,1766593839166,-150.0,0.00016137,2]
[399666353,1766593839176,-150.0,0.00016137,2]
[399666355,1766593839186,-160.47,0.00016169,2]
[399666357,1766593839196,-13571.74272303,0.00016175,2]
[399666359,1766593839205,-225.1609531,0.00016201,2]
[399666361,1766593839215,-6057.56980356,0.00016209,2]
[399666363,1766593839225,-1500.0,0.00016268,2]
[399666365,1766593839235,-1339.47657605,0.00016268,2]
[399666367,1766593839247,-19768.0,0.000163,2]
[399666369,1766593839256,-1470.54,0.00016389,2]
[399666371,1766593839265,-500.0,0.00016411,2]
[399666373,1766593839275,-13571.74272303,0.00016417,2]
[399666375,1766593839284,-150.0,0.00016438,2]
[399666377,1766593839294,-150.0,0.00016438,2]
[399666379,1766593839304,-500.0,0.00016438,2]
[399666381,1766593839313,-500.0,0.00016438,2]
[399666383,1766593839323,-500.0,0.00016438,2]
[399666385,1766593839332,-500.0,0.00016438,2]
[399666387,1766593839342,-423.51701517,0.00016438,2]
[399666388,1766593839353,-500.0,0.00016438,2]
[399666390,1766593839362,-500.0,0.00016438,2]
[399666392,1766593839372,-500.0,0.00016438,2]
[399666394,1766593839382,-500.0,0.00016438,2]
[399666396,1766593839392,-500.0,0.00016438,2]
[399666398,1766593839402,-500.0,0.00016438,2]
[399666400,1766593839412,-500.0,0.00016438,2]
[399666402,1766593839423,-500.0,0.00016438,2]
[399666404,1766593839433,-500.0,0.00016438,2]
[399666405,1766593839443,-500.0,0.00016438,2]
[399666406,1766593839454,-500.0,0.00016438,2]
[399666407,1766593839464,-500.0,0.00016438,2]
[399666408,1766593839475,-500.0,0.00016438,2]
[399666409,1766593839485,-500.0,0.00016438,2]
[399666410,1766593839495,-500.0,0.00016438,2]
[399666411,1766593839505,-500.0,0.00016438,2]
[399666412,1766593839516,-500.0,0.00016438,2]
[399666413,1766593839526,-500.0,0.00016438,2]
[399666414,1766593839536,-500.0,0.00016438,2]
[399666415,1766593839546,-500.0,0.00016438,2]
[399666416,1766593839556,-500.0,0.00016438,2]